fUSD/lending_fUSD_20250807
["ID","MTS","AMOUNT","RATE_DAILY","PERIOD"]
[377899534,1754608239804,-1097.06,0.00019178,2]
[377899536,1754608239814,-500.31,0.00019178,2]
[377899538,1754608239823,-400.0,0.00019178,2]
[377899540,1754608239832,-1368.14,0.00019178,2]
[377899542,1754608239842,-891.56,0.00019178,2]
[377899544,1754608239851,-938.0,0.00019178,2]
[377899546,1754608239861,-1281.93,0.00019178,2]
[377899548,1754608239871,-1421.26,0.00019178,2]
[377899550,1754608239880,-412.57,0.00019178,2]
[377899552,1754608239890,-846.95,0.00019178,2]
[377899554,1754608239899,-400.0,0.00019178,2]
[377899556,1754608239908,-400.0,0.00019178,2]
[377899558,1754608239919,-409.81,0.00019178,2]
[377899560,1754608239929,-673.08,0.00019178,2]
[377899562,1754608239939,-947.04,0.00019178,2]
[377899564,1754608239948,-904.59,0.00019178,2]
[377899566,1754608239958,-1195.27,0.00019178,2]
[377899568,1754608239968,-400.0,0.00019178,2]
[377899570,1754608239978,-1444.3,0.00019178,2]
[377899572,1754608239987,-1396.33,0.00019178,2]
[377899574,1754608239997,-640.4,0.00019178,2]
[377899576,1754608240007,-2813.93,0.00019178,2]
[377899579,1754608240016,-400.0,0.00019178,2]
[377899581,1754608240026,-389.2924725,0.00019178,2]
[377899582,1754608240035,-441.79,0.00019178,2]
[377899584,1754608240044,-400.0,0.00019178,2]
[377899586,1754608240054,-400.0,0.00019178,2]
[377899589,1754608240063,-821.4,0.00019178,2]
[377899592,1754608240073,-1026.5,0.00019178,2]
[377899595,1754608240082,-400.0,0.00019178,2]
[377899598,1754608240091,-1079.63,0.00019178,2]
[377899600,1754608240101,-949.19,0.00019178,2]
[377899602,1754608240111,-581.25242756,0.00019178,2]
[377899625,1754608240306,-1049.79852092,0.00019178,2]
[377899627,1754608240319,-142.80905152,0.00019178,2]
[377899629,1754608240330,-248.53763896,0.00019178,2]
[377899631,1754608240342,-611.02421895,0.00019178,2]
[377899640,1754608240423,-942.97814209,0.00019178,2]
[377899642,1754608240432,-509.82302679,0.00019178,2]
[377899644,1754608240444,-874.08697321,0.00019178,2]
[377899646,1754608240454,-610.43,0.00019178,2]
[377899648,1754608240463,-176.15286644,0.00019178,2]
[377899650,1754608240474,-601.84713356,0.00019178,2]
[377899652,1754608240483,-400.0,0.00019178,2]
[377899654,1754608240493,-226.20305295,0.00019178,2]
[377899657,1754608240510,-767.47694705,0.00019178,2]
[377899659,1754608240520,-47.16485867,0.00019178,2]
[377899662,1754608240533,-352.83514133,0.00019178,2]
[377899664,1754608240543,-547.02,0.00019178,2]
[377899666,1754608240552,-400.0,0.00019178,2]
[377899668,1754608240562,-898.45,0.00019178,2]
[377899670,1754608240573,-773.73,0.00019178,2]
[377899672,1754608240582,-400.0,0.00019178,2]
[377899674,1754608240592,-400.0,0.00019178,2]
[377899676,1754608240602,-2072.69,0.00019178,2]
[377899678,1754608240611,-446.94,0.00019178,2]
[377899680,1754608240621,-400.0,0.00019178,2]
[377899682,1754608240631,-400.0,0.00019178,2]
[377899684,1754608240641,-400.0,0.00019178,2]
[377899686,1754608240651,-684.1,0.00019178,2]
[377899688,1754608240661,-255.74906356,0.00019178,2]
[377899690,1754608240673,-400.0,0.00019178,2]
[377899692,1754608240687,-946.73,0.00019178,2]
[377899694,1754608240697,-380.27916008,0.00019178,2]
[377899698,1754608240722,-19.72083992,0.00019178,2]
[377899700,1754608240733,-400.0,0.00019178,2]
[377899702,1754608240743,-649.13,0.00019178,2]
[377899704,1754608240752,-913.75,0.00019178,2]
[377899706,1754608240763,-1234.21,0.00019178,2]
[377899708,1754608240772,-517.1,0.00019178,2]
[377899710,1754608240783,-603.93,0.00019178,2]
[377899712,1754608240792,-400.0,0.00019178,2]
[377899715,1754608240802,-560.05,0.00019178,2]
[377899717,1754608240811,-400.0,0.00019178,2]
[377899719,1754608240821,-614.8,0.00019178,2]
[377899721,1754608240830,-774.68,0.00019178,2]
[377899723,1754608240840,-2753.71,0.00019178,2]
[377899725,1754608240850,-924.58,0.00019178,2]
[377899727,1754608240859,-400.0,0.00019178,2]
[377899729,1754608240869,-176.77104743,0.00019178,2]
[377899731,1754608240880,-400.0,0.00019178,2]
[377899733,1754608240891,-490.62,0.00019178,2]
[377899735,1754608240900,-664.56,0.00019178,2]
[377899737,1754608240909,-1163.71,0.00019178,2]
[377899739,1754608240919,-667.57,0.00019178,2]
[377899741,1754608240928,-1531.49,0.00019178,2]
[377899743,1754608240939,-400.0,0.00019178,2]
[377899745,1754608240948,-400.0,0.00019178,2]
[377899747,1754608240958,-400.0,0.00019178,2]
[377899749,1754608240967,-1536.08,0.00019178,2]
[377899751,1754608240977,-400.0,0.00019178,2]
[377899753,1754608240987,-509.4,0.00019178,2]
[377899755,1754608240996,-400.0,0.00019178,2]
[377899757,1754608241006,-400.0,0.00019178,2]
[377899759,1754608241016,-400.0,0.00019178,2]
[377899761,1754608241026,-1319.34,0.00019178,2]
[377899763,1754608241035,-1172.97,0.00019178,2]
[377899765,1754608241046,-500.0,0.00019178,2]
[377899767,1754608241056,-405.67,0.00019178,2]
[377899769,1754608241065,-400.0,0.00019178,2]
[377899771,1754608241075,-500.0,0.00019178,2]
[377899774,1754608241086,-400.0,0.00019178,2]
[377899776,1754608241095,-500.0,0.00019178,2]
[377899778,1754608241105,-500.0,0.00019178,2]
[377899780,1754608241115,-495.16,0.00019178,2]
[377899782,1754608241124,-500.0,0.00019178,2]
[377899784,1754608241134,-500.0,0.00019178,2]
[377899786,1754608241144,-500.0,0.00019178,2]
[377899788,1754608241154,-426.12194142,0.00019178,2]
[377899790,1754608241163,-400.0,0.00019178,2]
[377899792,1754608241173,-400.0,0.00019178,2]
[377899794,1754608241182,-400.0,0.00019178,2]
[377899796,1754608241192,-400.0,0.00019178,2]
[377899798,1754608241202,-837.28,0.00019178,2]
[377899800,1754608241214,-400.0,0.00019178,2]
[377899802,1754608241224,-1376.08,0.00019178,2]
[377899804,1754608241234,-1306.29,0.00019178,2]
[377899805,1754608241244,-400.0,0.00019178,2]
[377899806,1754608241254,-827.9,0.00019178,2]
[377899807,1754608241263,-400.0,0.00019178,2]
[377899813,1754608241407,-400.0,0.00019178,2]
[377899815,1754608241417,-857.69,0.00019178,2]
[377899817,1754608241426,-400.0,0.00019178,2]
[377899819,1754608241435,-636.3,0.00019178,2]
[377899821,1754608241445,-400.0,0.00019178,2]
[377899823,1754608241454,-413.18,0.00019178,2]
[377899825,1754608241463,-400.0,0.00019178,2]
[377899827,1754608241472,-2208.61,0.00019178,2]
[377899829,1754608241481,-400.0,0.00019178,2]
[377899831,1754608241490,-731.2,0.00019178,2]
[377899833,1754608241499,-400.0,0.00019178,2]
[377899835,1754608241508,-859.54,0.00019178,2]
[377899837,1754608241517,-461.35,0.00019178,2]
[377899839,1754608241526,-504.94,0.00019178,2]
[377899841,1754608241535,-1612.2,0.00019178,2]
[377899842,1754608241544,-400.0,0.00019178,2]
[377899844,1754608241554,-2620.2,0.00019178,2]
[377899846,1754608241563,-400.0,0.00019178,2]
[377899848,1754608241572,-570.04,0.00019178,2]
[377899850,1754608241581,-400.0,0.00019178,2]
[377899852,1754608241591,-400.0,0.00019178,2]
[377899854,1754608241600,-400.0,0.00019178,2]
[377899857,1754608241610,-570.85,0.00019178,2]
[377899859,1754608241619,-400.0,0.00019178,2]
[377899860,1754608241628,-400.0,0.00019178,2]
[377899862,1754608241638,-400.0,0.00019178,2]
[377899865,1754608241649,-400.0,0.00019178,2]
[377899867,1754608241658,-476.89720436,0.00019178,2]
[377899869,1754608241668,-1294.55,0.00019178,2]
[377899871,1754608241677,-1466.01,0.00019178,2]
[377899872,1754608241686,-400.0,0.00019178,2]
[377899875,1754608241695,-1101.84,0.00019178,2]
[377899876,1754608241705,-1174.76,0.00019178,2]
[377899879,1754608241715,-400.0,0.00019178,2]
[377899880,1754608241724,-400.0,0.00019178,2]
[377899883,1754608241733,-400.0,0.00019178,2]
[377899885,1754608241743,-1428.72,0.00019178,2]
[377899887,1754608241752,-784.36,0.00019178,2]
[377899889,1754608241762,-2242.08,0.00019178,2]
[377899891,1754608241771,-946.37,0.00019178,2]
[377899893,1754608241780,-1235.89,0.00019178,2]
[377899895,1754608241790,-400.0,0.00019178,2]
[377899896,1754608241799,-890.81,0.00019178,2]
[377899898,1754608241808,-518.41746092,0.00019178,2]
[377899900,1754608241818,-400.0,0.00019178,2]
[377899902,1754608241828,-400.0,0.00019178,2]
[377899904,1754608241837,-400.0,0.00019178,2]
[377899906,1754608241847,-400.0,0.00019178,2]
[377899908,1754608241856,-400.0,0.00019178,2]
[377899910,1754608241866,-1130.56,0.00019178,2]
[377899912,1754608241876,-1478.76,0.00019178,2]
[377899915,1754608241886,-1492.52,0.00019178,2]
[377899916,1754608241895,-782.44,0.00019178,2]
[377899918,1754608241904,-405.33636522,0.00019178,2]
[377899921,1754608241914,-1120.09,0.00019178,2]
[377899923,1754608241926,-400.0,0.00019178,2]
[377899925,1754608241935,-835.4,0.00019178,2]
[377899927,1754608241946,-400.0,0.00019178,2]
[377899928,1754608241957,-485.45394472,0.00019178,2]
[377899931,1754608241967,-567.7,0.00019178,2]
[377899933,1754608241977,-400.0,0.00019178,2]
[377899935,1754608241988,-400.0,0.00019178,2]
[377899936,1754608241997,-400.0,0.00019178,2]
[377899938,1754608242006,-400.0,0.00019178,2]
[377899940,1754608242015,-495.82,0.00019178,2]
[377899942,1754608242024,-560.31,0.00019178,2]
[377899944,1754608242033,-948.94,0.00019178,2]
[377899946,1754608242042,-400.0,0.00019178,2]
[377899948,1754608242051,-400.0,0.00019178,2]
[377899950,1754608242060,-583.8,0.00019178,2]
[377899952,1754608242070,-400.0,0.00019178,2]
[377899954,1754608242078,-1940.12,0.00019178,2]
[377899956,1754608242087,-400.0,0.00019178,2]
[377899958,1754608242096,-400.0,0.00019178,2]
[377899960,1754608242105,-2139.0,0.00019178,2]
[377899962,1754608242115,-1008.44,0.00019178,2]
[377899964,1754608242124,-1375.77,0.00019178,2]
[377899966,1754608242133,-400.0,0.00019178,2]
[377899967,1754608242142,-1517.92,0.00019178,2]
[377899969,1754608242152,-952.51,0.00019178,2]
[377899972,1754608242163,-603.43,0.00019178,2]
[377899974,1754608242172,-1843.15,0.00019178,2]
[377899975,1754608242182,-1841.79,0.00019178,2]
[377899977,1754608242191,-659.8,0.00019178,2]
[377899979,1754608242201,-400.0,0.00019178,2]
[377899981,1754608242215,-673.15,0.00019178,2]
[377899983,1754608242224,-400.0,0.00019178,2]
[377899985,1754608242233,-855.58,0.00019178,2]
[377899987,1754608242242,-400.0,0.00019178,2]
[377899989,1754608242253,-400.0,0.00019178,2]
[377899991,1754608242262,-618.75,0.00019178,2]
[377899993,1754608242272,-400.0,0.00019178,2]
[377899995,1754608242282,-1682.59,0.00019178,2]
[377899997,1754608242292,-1384.51,0.00019178,2]
[377899999,1754608242301,-400.0,0.00019178,2]
[377900001,1754608242310,-400.0,0.00019178,2]
[377900003,1754608242319,-1044.52,0.00019178,2]
[377900005,1754608242328,-400.0,0.00019178,2]
[377900007,1754608242338,-400.0,0.00019178,2]
[377900009,1754608242347,-400.0,0.00019178,2]
[377900011,1754608242356,-685.01,0.00019178,2]
[377900013,1754608242366,-1771.98,0.00019178,2]
[377900015,1754608242375,-355.87080107,0.00019178,2]
[377900017,1754608242385,-1631.73,0.00019178,2]
[377900019,1754608242395,-589.5,0.00019178,2]
[377900021,1754608242404,-400.0,0.00019178,2]
[377900023,1754608242414,-400.0,0.00019178,2]
[377900025,1754608242423,-698.98,0.00019178,2]
[377900027,1754608242432,-522.94,0.00019178,2]
[377900029,1754608242447,-400.0,0.00019178,2]
[377900031,1754608242457,-646.81,0.00019178,2]
[377900033,1754608242466,-671.32,0.00019178,2]
[377900035,1754608242475,-1073.07,0.00019178,2]
[377900037,1754608242485,-732.8,0.00019178,2]
[377900039,1754608242494,-1783.66,0.00019178,2]
[377900041,1754608242503,-400.0,0.00019178,2]
[377900043,1754608242513,-819.17,0.00019178,2]
[377900045,1754608242522,-741.82,0.00019178,2]
[377900047,1754608242532,-1429.42,0.00019178,2]
[377900049,1754608242541,-768.85,0.00019178,2]
[377900051,1754608242550,-400.0,0.00019178,2]
[377900053,1754608242559,-770.73,0.00019178,2]
[377900055,1754608242568,-883.87,0.00019178,2]
[377900057,1754608242577,-694.37,0.00019178,2]
[377900059,1754608242586,-400.0,0.00019178,2]
[377900061,1754608242596,-400.0,0.00019178,2]
[377900063,1754608242605,-509.11,0.00019178,2]
[377900065,1754608242614,-607.94,0.00019178,2]
[377900067,1754608242623,-489.22,0.00019178,2]
[377900069,1754608242634,-1496.11,0.00019178,2]
[377900071,1754608242643,-1191.81,0.00019178,2]
[377900073,1754608242652,-1658.99,0.00019178,2]
[377900075,1754608242661,-1292.2,0.00019178,2]
[377900077,1754608242670,-400.0,0.00019178,2]
[377900079,1754608242679,-400.0,0.00019178,2]
[377900080,1754608242688,-1169.41,0.00019178,2]
[377900082,1754608242697,-400.0,0.00019178,2]
[377900084,1754608242707,-400.0,0.00019178,2]
[377900086,1754608242716,-1923.15,0.00019178,2]
[377900089,1754608242726,-970.57,0.00019178,2]
[377900091,1754608242735,-674.77,0.00019178,2]
[377900092,1754608242744,-400.0,0.00019178,2]
[377900095,1754608242754,-765.06,0.00019178,2]
[377900097,1754608242763,-2428.4,0.00019178,2]
[377900098,1754608242773,-400.0,0.00019178,2]
[377900100,1754608242782,-400.0,0.00019178,2]
[377900103,1754608242792,-948.15,0.00019178,2]
[377900104,1754608242803,-400.0,0.00019178,2]
[377900106,1754608242813,-159.74462501,0.00019178,2]
[377900108,1754608242822,-2383.87,0.00019178,2]
[377900111,1754608242832,-400.0,0.00019178,2]
[377900112,1754608242841,-522.11,0.00019178,2]
[377900114,1754608242851,-400.0,0.00019178,2]
[377900116,1754608242860,-722.99,0.00019178,2]
[377900118,1754608242870,-1537.13,0.00019178,2]
[377900121,1754608242879,-632.72,0.00019178,2]
[377900123,1754608242889,-418.3,0.00019178,2]
[377900124,1754608242898,-400.0,0.00019178,2]
[377900126,1754608242907,-400.0,0.00019178,2]
[377900128,1754608242916,-400.0,0.00019178,2]
[377900130,1754608242925,-1616.49,0.00019178,2]
[377900132,1754608242934,-521.11,0.00019178,2]
[377900134,1754608242943,-3181.46,0.00019178,2]
[377900136,1754608242952,-562.32,0.00019178,2]
[377900138,1754608242961,-1821.63,0.00019178,2]
[377900140,1754608242970,-430.0,0.00019178,2]
[377900142,1754608242979,-400.0,0.00019178,2]
[377900144,1754608242988,-400.0,0.00019178,2]
[377900146,1754608242997,-491.60526884,0.00019178,2]
[377900148,1754608243006,-400.0,0.00019178,2]
[377900150,1754608243015,-453.52,0.00019178,2]
[377900152,1754608243024,-811.95,0.00019178,2]
[377900154,1754608243033,-547.57,0.00019178,2]
[377900156,1754608243042,-2903.18,0.00019178,2]
[377900158,1754608243051,-1445.2,0.00019178,2]
[377900160,1754608243060,-3566.44,0.00019178,2]
[377900162,1754608243070,-968.8,0.00019178,2]
[377900164,1754608243079,-517.94,0.00019178,2]
[377900166,1754608243088,-677.07,0.00019178,2]
[377900168,1754608243097,-1817.0,0.00019178,2]
[377900170,1754608243107,-400.0,0.00019178,2]
[377900172,1754608243115,-400.0,0.00019178,2]
[377900175,1754608243124,-400.0,0.00019178,2]
[377900178,1754608243133,-400.0,0.00019178,2]
[377900180,1754608243142,-489.37,0.00019178,2]
[377900183,1754608243151,-400.0,0.00019178,2]
[377900186,1754608243160,-1457.39,0.00019178,2]
[377900188,1754608243169,-1513.66,0.00019178,2]
[377900191,1754608243178,-453.34,0.00019178,2]
[377900193,1754608243187,-400.0,0.00019178,2]
[377900195,1754608243196,-636.22,0.00019178,2]
[377900197,1754608243207,-400.0,0.00019178,2]
[377900199,1754608243216,-400.0,0.00019178,2]
[377900201,1754608243226,-725.01,0.00019178,2]
[377900203,1754608243236,-400.0,0.00019178,2]
[377900205,1754608243246,-1404.68,0.00019178,2]
[377900207,1754608243255,-477.57210109,0.00019178,2]
[377900277,1754608243907,-55.92789891,0.00019178,2]
[377900279,1754608243917,-534.57,0.00019178,2]
[377900281,1754608243926,-1073.40294609,0.00019178,2]
[377900284,1754608243945,-774.05705391,0.00019178,2]
[377900286,1754608243956,-88.73837523,0.00019178,2]
[377900288,1754608243967,-311.26162477,0.00019178,2]
[377900290,1754608243976,-115.45094046,0.00019178,2]
[377900472,1754608245695,-151.0,0.00018992,2]
[377900474,1754608245704,-151.0,0.00018993,2]
[377900476,1754608245714,-1578.54905954,0.00019178,2]
[377900478,1754608245723,-2056.21,0.00019178,2]
[377900480,1754608245732,-400.0,0.00019178,2]
[377900482,1754608245742,-541.9426803,0.00019178,2]
[377900484,1754608245753,-703.9673197,0.00019178,2]
[377900486,1754608245762,-400.0,0.00019178,2]
[377900488,1754608245771,-362.33207225,0.00019178,2]
[377900490,1754608245781,-1970.2,0.00019178,2]
[377900492,1754608245790,-592.46,0.00019178,2]
[377900494,1754608245799,-646.56,0.00019178,2]
[377900496,1754608245809,-871.16,0.00019178,2]
[377900498,1754608245818,-400.0,0.00019178,2]
[377900500,1754608245827,-817.21,0.00019178,2]
[377900502,1754608245837,-1506.6,0.00019178,2]
[377900504,1754608245846,-411.21,0.00019178,2]
[377900506,1754608245856,-880.19939677,0.00019178,2]
[377900546,1754608246200,-227.58060323,0.00019178,2]
[377900548,1754608246214,-159.48195887,0.00019178,2]
[377900550,1754608246226,-493.33804113,0.00019178,2]
[377900552,1754608246235,-1066.58,0.00019178,2]
[377900554,1754608246245,-2286.8,0.00019178,2]
[377900556,1754608246254,-400.0,0.00019178,2]
[377900559,1754608246263,-400.0,0.00019178,2]
[377900562,1754608246272,-400.0,0.00019178,2]
[377900564,1754608246281,-443.06,0.00019178,2]
[377900566,1754608246290,-400.0,0.00019178,2]
[377900568,1754608246299,-529.88,0.00019178,2]
[377900570,1754608246308,-3070.12,0.00019178,2]
[377900572,1754608246317,-400.0,0.00019178,2]
[377900574,1754608246326,-923.19,0.00019178,2]
[377900576,1754608246335,-1625.42,0.00019178,2]
[377900577,1754608246344,-400.0,0.00019178,2]
[377900580,1754608246353,-400.0,0.00019178,2]
[377900581,1754608246363,-1634.35,0.00019178,2]
[377900583,1754608246373,-400.0,0.00019178,2]
[377900585,1754608246383,-2182.19,0.00019178,2]
[377900587,1754608246392,-2166.57,0.00019178,2]
[377900589,1754608246401,-2295.05,0.00019178,2]
[377900591,1754608246410,-400.0,0.00019178,2]
[377900593,1754608246419,-1031.38500944,0.00019178,2]
[377900596,1754608246432,-582.52499056,0.00019178,2]
[377900598,1754608246441,-1541.6,0.00019178,2]
[377900600,1754608246451,-1852.76180944,0.00019178,2]
[377900602,1754608246462,-84.12819056,0.00019178,2]
[377900604,1754608246471,-407.54,0.00019178,2]
[377900606,1754608246480,-400.0,0.00019178,2]
[377900608,1754608246489,-190.0,0.00019178,2]
[377900610,1754608246498,-507.31,0.00019178,2]
[377900612,1754608246507,-652.0,0.00019178,2]
[377900614,1754608246516,-856.93180944,0.00019178,2]
[377900616,1754608246527,-487.18819056,0.00019178,2]
[377900618,1754608246536,-400.0,0.00019178,2]
[377900620,1754608246546,-1469.23,0.00019178,2]
[377900622,1754608246555,-1267.87,0.00019178,2]
[377900624,1754608246564,-409.76,0.00019178,2]
[377900626,1754608246574,-1016.5,0.00019178,2]
[377900628,1754608246584,-400.0,0.00019178,2]
[377900630,1754608246593,-2473.12,0.00019178,2]
[377900632,1754608246603,-522.54,0.00019178,2]
[377900634,1754608246612,-400.0,0.00019178,2]
[377900636,1754608246622,-400.0,0.00019178,2]
[377900638,1754608246631,-1238.27,0.00019178,2]
[377900640,1754608246641,-1989.08,0.00019178,2]
[377900642,1754608246651,-400.0,0.00019178,2]
[377900644,1754608246660,-400.0,0.00019178,2]
[377900645,1754608246669,-680.58,0.00019178,2]
[377900647,1754608246679,-567.64,0.00019178,2]
[377900650,1754608246688,-410.11,0.00019178,2]
[377900652,1754608246698,-827.31,0.00019178,2]
[377900653,1754608246707,-469.93,0.00019178,2]
[377900655,1754608246716,-1534.28,0.00019178,2]
[377900657,1754608246726,-400.0,0.00019178,2]
[377900659,1754608246735,-400.0,0.00019178,2]
[377900661,1754608246745,-432.63,0.00019178,2]
[377900663,1754608246755,-915.48,0.00019178,2]
[377900666,1754608246774,-400.0,0.00019178,2]
[377900668,1754608246787,-1827.39,0.00019178,2]
[377900669,1754608246796,-806.36,0.00019178,2]
[377900711,1754608247169,-1203.83,0.00019178,2]
[377900713,1754608247179,-4798.68,0.00019178,2]
[377900714,1754608247188,-1201.16,0.00019178,2]
[377900715,1754608247197,-647.65685166,0.00019178,2]
[377900716,1754608247222,-241.14314834,0.00019178,2]
[377900717,1754608247231,-1155.07430241,0.00019178,2]
[377900753,1754608247640,-460.00742379,0.0001894,2]
[377900804,1754608248134,-588.9,0.0001894,2]
[377900805,1754608248146,-386.16635969,0.0001894,2]
[377900809,1754608248289,-726.18111776,0.0001894,2]
[377900883,1754608249347,-170.8436734,0.00018899,2]
[377900885,1754608249357,-226.26509876,0.0001894,2]
[377900887,1754608249367,-1170.0,0.00019042,2]
[377900889,1754608249377,-1570.91569759,0.00019178,2]
[377900891,1754608249386,-403.76876488,0.00019178,2]
[377900893,1754608249395,-639.93,0.00019178,2]
[377900895,1754608249404,-510.76,0.00019178,2]
[377900897,1754608249413,-1060.43,0.00019178,2]
[377900899,1754608249422,-400.0,0.00019178,2]
[377900901,1754608249432,-2215.54,0.00019178,2]
[377900903,1754608249442,-400.0,0.00019178,2]
[377900905,1754608249451,-640.04,0.00019178,2]
[377900907,1754608249460,-400.0,0.00019178,2]
[377900909,1754608249469,-2392.86,0.00019178,2]
[377900911,1754608249479,-2585.75,0.00019178,2]
[377900913,1754608249487,-574.11,0.00019178,2]
[377900915,1754608249497,-400.0,0.00019178,2]
[377900917,1754608249506,-400.0,0.00019178,2]
[377900919,1754608249515,-400.0,0.00019178,2]
[377900921,1754608249524,-1991.39,0.00019178,2]
[377900923,1754608249533,-400.0,0.00019178,2]
[377900925,1754608249543,-400.0,0.00019178,2]
[377900927,1754608249552,-1891.08,0.00019178,2]
[377900929,1754608249561,-400.0,0.00019178,2]
[377900931,1754608249571,-400.0,0.00019178,2]
[377900933,1754608249580,-400.0,0.00019178,2]
[377900935,1754608249589,-279.28864511,0.00019178,2]
[377900938,1754608249600,-803.71135489,0.00019178,2]
[377900940,1754608249610,-951.57,0.00019178,2]
[377900942,1754608249619,-1599.82,0.00019178,2]
[377900944,1754608249628,-1804.9,0.00019178,2]
[377900946,1754608249638,-1315.97,0.00019178,2]
[377900948,1754608249647,-528.87,0.00019178,2]
[377900950,1754608249656,-540.8,0.00019178,2]
[377900952,1754608249665,-1233.49,0.00019178,2]
[377900954,1754608249674,-1567.52,0.00019178,2]
[377900956,1754608249683,-400.0,0.00019178,2]
[377900957,1754608249692,-99.54452949,0.00019178,2]
[377900963,1754608249729,-561.38547051,0.00019178,2]
[377900965,1754608249739,-450.99,0.00019178,2]
[377900967,1754608249748,-2927.18,0.00019178,2]
[377900969,1754608249760,-565.91,0.00019178,2]
[377900971,1754608249769,-400.0,0.00019178,2]
[377900973,1754608249778,-333.92260121,0.00019178,2]
[377900974,1754608249787,-400.0,0.00019178,2]
[377900976,1754608249796,-972.36314828,0.00019178,2]
[377900988,1754608488167,336.25,0.00013699,2]
[377900991,1754608553927,175.0,0.00017985,7]
[377900992,1754608670736,-448.32,0.00018063,2]
[377900993,1754608670757,-1000.0,0.00018098,4]
[377900994,1754608670778,-189.99,0.00018134,2]
[377900995,1754608670798,-5943.64,0.00018175,2]
[377900996,1754608670819,-418.05,0.00018199,2]
[377900997,1754608690693,9453.24,0.0001795,2]
[377900998,1754608694898,1000.0,0.00017943,2]
[377900999,1754608751104,150.0,0.00017938,2]
[377901000,1754608807203,507.37018612,0.00018,2]
[377901003,1754608893010,7342.62981388,0.00017897,2]
[377901004,1754608893041,8351.56018612,0.00017897,2]
[377901005,1754608939824,198.52,0.00017882,2]
[377901007,1754608962829,154.92,0.00017849,2]
[377901008,1754609074458,666.0,0.00017823,3]
[377901009,1754609096600,364.13,0.00015068,2]
[377901010,1754609096741,364.13,0.00016656,2]
[377901011,1754609101745,152.0,0.00017994,6]
[377901012,1754609102056,152.0,0.00017258,5]
[377901013,1754609102357,152.0,0.00016521,4]
[377901014,1754609102667,152.0,0.00015784,3]
[377901016,1754609149213,1000.0,0.00030137,120]
[377901017,1754609152599,328.22379122,0.00015,10]
[377901020,1754609181201,1000.0,0.00030137,120]
[377901022,1754609209580,150.0,0.00017713,2]
[377901026,1754609283875,2751.0,0.00017667,2]
[377901031,1754609315750,4215.399999,0.000151,2]
[377901032,1754609315973,525.16441991,0.0001421,7]
[377901046,1754609387070,5943.64,0.00017699,2]
[377901049,1754609409352,448.32,0.00017726,2]
[377901054,1754609431664,-180.76738863,0.00018199,2]
[377901055,1754609431767,-548.86949514,0.00018199,4]
[377901056,1754609431808,-412.4410153,0.00018199,4]
[377901057,1754609431820,-38.68948956,0.00018199,4]
[377901058,1754609431829,-250.0,0.00018199,2]
[377901059,1754609431839,-150.0,0.00018199,2]
[377901060,1754609431848,-150.0,0.00018199,2]
[377901061,1754609431858,-1000.0,0.00018199,4]
[377901062,1754609431867,-250.0,0.00018199,2]